Cogmind - Beta 15 @@@ ROGUE MODE // 2025.07.20 @ 12:11:13 Player: Tuja Result: Destroyed by B-75 Beast with Heavy Plasma Cannon Performance ------------- Evolutions (2) 1000 Regions Visited (4) 800 Robots Destroyed (14) 70 Value Destroyed (521) 521 Prototype IDs (2) 40 Alien Tech Used (0) 0 Bonus (900) 900 TOTAL SCORE: 3331 Bonus ------- Pacifist 200 Entered Garrisons 200 Used RIF Installer 500 Cogmind --------- Core Integrity 0/550 Matter 286/300 Energy 100/100 System Corruption 0% Temperature Cool (12) Movement Core (150) Ox2 Location -8/Garrison Parts ------- > --- POWER (1) -------- (None) > --- PROPULSION (3) --- (None) > --- UTILITY (4) ------ Field Recycling Unit > --- WEAPON (3) ------- (None) > --- INVENTORY (5) ---- Light Ion Engine Light Ion Engine Light Nuclear Core Relay Coupler [Grunt] (21) Peak State ------------ > --- POWER ------------ Light Ion Engine > --- PROPULSION ------- Aluminum Leg Aluminum Leg Aluminum Leg > --- UTILITY ---------- Improved Heat Sink Medium Storage Unit Utility Shielding Field Recycling Unit > --- WEAPON ----------- EM Pulse Cannon Assault Rifle Light Assault Rifle > --- INVENTORY -------- Light Ion Engine Light Ion Engine Light Ion Engine Light Nuclear Core Light Treads Light Treads Small Laser Small Laser Particle Gun Light Assault Rifle [Rating: 17] Favorites ----------- Power Light Ion Engine Engine Light Ion Engine Propulsion Aluminum Leg Treads Light Treads Leg Aluminum Leg Utility Medium Storage Unit Device Improved Heat Sink Storage Medium Storage Unit Protection Utility Shielding Weapon Light Assault Rifle Energy Gun Small Laser Energy Cannon EM Pulse Cannon Ballistic Gun Light Assault Rifle Build | -11 -10 -9 -8 -8 ------- Run | Yrd Mat Mat Mat Gar Slots Evolved 4 | . . 2 2 . Power . | . . . . . Propulsion 1 | . . . 1 . Utility 2 | . . 2 . . Weapon 1 | . . . 1 . Parts Attached 23 | 6 4 3 2 8 Power 3 | 1 1 . . 1 Engine 3 | 1 1 . . 1 Core . | . . . . . Reactor . | . . . . . Propulsion 5 | 2 . . 1 2 Treads 2 | . . . . 2 Leg 3 | 2 . . 1 . Wheel . | . . . . . Hover . | . . . . . Flight . | . . . . . Utility 6 | 1 3 2 . . Device 3 | . 1 2 . . Storage 2 | 1 1 . . . Processor . | . . . . . Hackware . | . . . . . Protection 1 | . 1 . . . Artifact . | . . . . . Weapon 9 | 2 . 1 1 5 Energy Gun 4 | 2 . . . 2 Energy Cannon 1 | . . . . 1 Ballistic Gun 4 | . . 1 1 2 Ballistic Cannon . | . . . . . Launcher . | . . . . . Special Weapon . | . . . . . Impact Weapon . | . . . . . Slashing Weapon . | . . . . . Piercing Weapon . | . . . . . Special Melee Weapon . | . . . . . Unidentified Prototypes . | . . . . . Parts Lost 18 | . . 1 . 17 Power 2 | . . . . 2 Propulsion 5 | . . . . 5 Utility 3 | . . . . 3 Weapon 8 | . . 1 . 7 Highest Loss Streak 14 | . . 1 . 14 To Critical Strikes . | . . . . . Average Backups 7 | 3 6 7 7 9 Power 2 | . 1 1 2 3 Propulsion 1 | 1 2 2 2 1 Utility . | . . . 1 . Weapon 2 | 1 2 3 2 2 Tool/Special . | . . . . . Unused Backups 3 | . . . . 3 Power 2 | . . . . 2 Propulsion . | . . . . . Utility 1 | . . . . 1 Weapon . | . . . . . Tool/Special . | . . . . . Average Slot Usage (%) 90 | . 80 93 96 91 Engine 9 | . 11 11 9 8 Treads 1 | . . . . 2 Leg 21 | . 22 22 27 20 Device 14 | . . 17 18 16 Storage 10 | . 14 11 9 8 Protection 8 | . 9 9 9 7 Energy Gun 10 | . 21 20 9 3 Energy Cannon 2 | . . . . 4 Ballistic Gun 10 | . . 1 15 17 Peak Build Rating 17 | 6 7 12 14 17 Average Rating 11 | 3 5 9 13 14 On Entrance 7 | . 6 7 12 14 Naked Turns . | . . . . . Heaviest Build 32 | 11 17 26 20 32 Greatest Support 40 | 20 20 20 30 40 Greatest Overweight (x) 4 | 1 4 1 . 2 Average Overweight (x) . | . . . . . Largest Inventory Capacity 10 | 8 10 10 10 10 Average Capacity 9 | 7 8 10 10 9 Most Carried 10 | 6 10 9 8 10 Average Carried 7 | 3 6 7 7 9 Final Capacity 10 | 8 10 10 10 5 Final Carried 9 | 4 6 9 8 4 Class Distribution -------------------- 49% | Tank 47% | Mutant Dominant Class ---------------- Mutant | -10/Materials Mutant | -9/Materials Tank | -8/Materials Tank | -8/Garrison Resources | -11 -10 -9 -8 -8 ----------- Run | Yrd Mat Mat Mat Gar Matter Collected 520 | 176 . 215 . 129 Remotely . | . . . . . Salvage Created 404 | . . 232 . 172 Parts 25 | . . 8 . 17 Haulers Intercepted . | . . . . . Recyclers Shooed 1 | . . 1 . . Parts Field Recycled . | . . . . . Retrieved Matter . | . . . . . Parts Self-Destructed . | . . . . . Prevented . | . . . . . Kills | -11 -10 -9 -8 -8 ------- Run | Yrd Mat Mat Mat Gar Combat Hostiles Destroyed 14 | . . 5 . 9 Guns 12 | . . 5 . 7 Cannons 2 | . . . . 2 Classes Destroyed 3 | . . 1 . 2 Swarmer 8 | . . . . 8 Grunt 5 | . . 5 . . Sentry 1 | . . . . 1 Best Kill Streak 2 | . . 2 . 2 Combat Bots Only 2 | . . 2 . 2 Max Kills in Single Turn 2 | . . 1 . 2 Gunslinging 1 | . . . . 1 Exploded . | . . . . . Melee . | . . . . . Uniques/NPCs Destroyed . | . . . . . Combat | -11 -10 -9 -8 -8 -------- Run | Yrd Mat Mat Mat Gar Hostile Shots Fired 187 | . . 32 . 155 Missed 58 | . . 10 . 48 Hits 129 | . . 22 . 107 Projectile 129 | . . 22 . 107 Critical Strikes 1 | . . . . 1 Damage Taken 2020 | . . 279 . 1741 Core 572 | . . 20 . 552 Absorbed by Shields 163 | . . . . 163 Redirected to Shielding 42 | . . 18 . 24 Core Remaining (%) 98 | 100 100 95 . . Volleys Fired 48 | . . 20 . 28 Largest 3 | . . 2 . 3 Hottest 103 | . . 90 . 103 Shots Fired 114 | . . 40 . 74 Gun 108 | . . 40 . 68 Cannon 6 | . . . . 6 Launcher . | . . . . . Special . | . . . . . Kinetic 61 | . . 3 . 58 Thermal 47 | . . 37 . 10 Explosive . | . . . . . Electromagnetic 6 | . . . . 6 Robot Hit Streak 19 | . . 19 . 6 Robot Miss Streak 5 | . . 1 . 5 Penetration Max . | . . . . . Secondary Targets 2 | . . . . 2 Max Gunslinging Chain 1 | . . . . 1 Shots Hit Robots 69 | . . 35 . 34 Core Hits 30 | . . 13 . 17 Critical Kills . | . . . . . Critical Parts Destroyed . | . . . . . Critical Strikes 2 | . . 2 . . Burn 2 | . . 2 . . Melee Attacks . | . . . . . Impact . | . . . . . Slashing . | . . . . . Piercing . | . . . . . Sneak Attacks . | . . . . . Combat Hostiles . | . . . . . Follow-up Attacks . | . . . . . Damage Inflicted 817 | . . 411 . 406 Guns 772 | . . 410 . 362 Cannons 44 | . . . . 44 Explosions . | . . . . . Melee . | . . . . . Ramming 1 | . . 1 . . Kinetic 328 | . . 32 . 296 Thermal 444 | . . 378 . 66 Explosive . | . . . . . Electromagnetic 44 | . . . . 44 Impact . | . . . . . Slashing . | . . . . . Piercing . | . . . . . Highest Corruption . | . . . . . Average Corruption . | . . . . . Corruption Purged . | . . . . . Corruption Blocked . | . . . . . Overload Shots . | . . . . . Overflow Damage . | . . . . . Projectiles . | . . . . . Explosions . | . . . . . Melee . | . . . . . Knockbacks . | . . . . . Impact . | . . . . . Kinetic . | . . . . . Secondary . | . . . . . Self-Inflicted Damage . | . . . . . Shots . | . . . . . Rammed . | . . . . . Targets Rammed 1 | . . 1 . . Kicked 1 | . . 1 . . Crushed . | . . . . . Highest Temperature 89 | . . 72 . 89 Average Temperature 24 | . . 28 . 20 Received Heat Transfer 435 | . . 156 . 279 Siege Activations . | . . . . . Martial Activations . | . . . . . Shielding Activations . | . . . . . Robots Disrupted . | . . . . . Combat Hostiles . | . . . . . Robots Corrupted . | . . . . . Combat Hostiles . | . . . . . Parts Fried . | . . . . . Impact Corruptions . | . . . . . Robots Melted . | . . . . . Combat Hostiles . | . . . . . Parts Melted 6 | . . 6 . . Heat Transferred 1290 | . . 1140 . 150 Parts Sabotaged . | . . . . . Parts Stolen . | . . . . . Parts Stripped . | . . . . . Power Chain Reactions . | . . . . . Alert | -11 -10 -9 -8 -8 ------- Run | Yrd Mat Mat Mat Gar Maximum Alert Level 1 | . . . . 1 Low Security (%) 97 | 100 100 100 100 94 Level 1 2 | . . . . 5 Level 2 . | . . . . . Level 3 . | . . . . . Level 4 . | . . . . . Level 5 . | . . . . . High Security . | . . . . . Max Security . | . . . . . Peak Influence 238 | . 18 40 12 238 Initial 12 | . . . 12 3 Average 71 | . 1 10 9 122 Influence Increases 427 | . 18 120 4 285 Destroy 0b10 Robot/C 280 | . . 100 . 180 Destroy Leader 30 | . . 20 . 10 Successful Hack 22 | . 18 . 4 . Anti-Garrison Action 50 | . . . . 50 Lose Combat Pursuer 45 | . . . . 45 Influence Decreases 309 | . 18 90 28 173 Entered New Map 21 | . . . 18 3 Time Decay 118 | . 18 90 10 . Lost Part 170 | . . . . 170 Squads Dispatched 1 | . . 1 . . Investigation . | . . . . . Extermination . | . . . . . Reinforcement 1 | . . 1 . . Assault . | . . . . . Garrison . | . . . . . Intercept . | . . . . . Searches Triggered . | . . . . . Construction Impeded . | . . . . . Haulers Reinforced . | . . . . . Active Scanning Responses . | . . . . . Cargo Convoy Interrupts . | . . . . . Stealth | -11 -10 -9 -8 -8 --------- Run | Yrd Mat Mat Mat Gar Distress Signals 1 | . . 1 . . Communications Jammed . | . . . . . Distress Signals . | . . . . . Times Spotted 21 | . 1 7 . 13 Peak Tracking Total 7 | . 2 3 . 7 Tactical Retreats 1 | . . . . 1 Traps | -11 -10 -9 -8 -8 ------- Run | Yrd Mat Mat Mat Gar Traps Triggered 11 | . 3 1 . 7 Indirectly . | . . . . . Trap Hack Attempts . | . . . . . Triggered . | . . . . . Disarmed . | . . . . . Reprogrammed . | . . . . . Reused . | . . . . . Traps Extracted . | . . . . . Installed . | . . . . . Triggered . | . . . . . Machines | -11 -10 -9 -8 -8 ---------- Run | Yrd Mat Mat Mat Gar Machines Disabled 1 | . . . . 1 Max in Single Turn 1 | . . . . 1 Garrison Relay 1 | . . . . 1 Machines Repaired . | . . . . . Machines Dismantled . | . . . . . Machines Sabotaged . | . . . . . Overloaded Fab Kills . | . . . . . Hacking | -11 -10 -9 -8 -8 --------- Run | Yrd Mat Mat Mat Gar Machines Accessed 2 | . 1 . 1 . Terminals 1 | . 1 . . . Fabricators . | . . . . . Repair Stations . | . . . . . Recycling Units . | . . . . . Scanalyzers . | . . . . . Garrison Access 1 | . . . 1 . Total Hacks 7 | . 4 . 3 . Successful 5 | . 3 . 2 . Failed 2 | . 1 . 1 . Catastrophic . | . . . . . Database Lockouts . | . . . . . Manual 1 | . 1 . . . Terminals 4 | . 4 . . . Fabricators . | . . . . . Repair Stations . | . . . . . Recycling Units . | . . . . . Scanalyzers . | . . . . . Garrison Access 3 | . . . 3 . Terminal Hacks 3 | . 3 . . . Prototype ID Bank 1 | . 1 . . . Branch Access Points 1 | . 1 . . . Investigation Status 1 | . 1 . . . Fabricator Hacks . | . . . . . Repair Station Hacks . | . . . . . Recycling Unit Hacks . | . . . . . Scanalyzer . | . . . . . Garrison Access Hacks 2 | . . . 2 . Unlock Access 1 | . . . 1 . Coupler Status 1 | . . . 1 . Unauthorized Hacks . | . . . . . Terminals . | . . . . . Fabricators . | . . . . . Repair Stations . | . . . . . Recycling Units . | . . . . . Scanalyzers . | . . . . . Garrison Access . | . . . . . Data Cores Recovered . | . . . . . Used . | . . . . . Hacking Detections 2 | . 1 . 1 . Full Trace Events . | . . . . . Feedback Events . | . . . . . Feedback Blocked . | . . . . . Robot Schematics Acquired . | . . . . . Robots Built . | . . . . . Authchips . | . . . . . Time . | . . . . . Total Robot Build Rating . | . . . . . Part Schematics Acquired . | . . . . . Parts Built . | . . . . . Authchips . | . . . . . Time . | . . . . . Total Part Build Rating . | . . . . . Parts Repaired . | . . . . . Time . | . . . . . Parts Recycled . | . . . . . Recycled Matter . | . . . . . Retrieved Matter . | . . . . . Retrieved Components . | . . . . . Parts Scanalyzed . | . . . . . Part Schematics Acquired . | . . . . . Parts Damaged . | . . . . . Bothacking | -11 -10 -9 -8 -8 ------------ Run | Yrd Mat Mat Mat Gar Used RIF Installer 1 | . . . . 1 Robots Hacked . | . . . . . Non-combat . | . . . . . Combat . | . . . . . Robot Hacks Applied . | . . . . . Relay Couplers Released 5 | . . . . 5 Machine Destruction 5 | . . . . 5 Fabnet Peak Effective % . | . . . . . Robots Rewired . | . . . . . Allies Hacked . | . . . . . Hacks Repelled . | . . . . . Allies | -11 -10 -9 -8 -8 -------- Run | Yrd Mat Mat Mat Gar Total Allies . | . . . . . Largest Group . | . . . . . Highest-Rated Group . | . . . . . Highest-Rated Ally . | . . . . . Total Orders . | . . . . . Ally Attacks . | . . . . . Total Damage . | . . . . . Kills . | . . . . . Allies Corrupted . | . . . . . Allies Melted . | . . . . . Intel | -11 -10 -9 -8 -8 ------- Run | Yrd Mat Mat Mat Gar Active Infowar (turns) . | . . . . . Robot Analysis Total . | . . . . . Derelict Logs Recovered . | . . . . . Drone Launches . | . . . . . Drone Recoveries . | . . . . . Exploration | -11 -10 -9 -8 -8 ------------- Run | Yrd Mat Mat Mat Gar Turns Passed 1313 | 81 172 306 25 729 Spaces Moved 705 | 67 118 147 19 354 Core 48 | 32 12 . . 4 Treads 49 | . . . . 49 Legs 608 | 35 106 147 19 301 Wheels . | . . . . . Hover . | . . . . . Flight . | . . . . . Fastest Speed 50 | 50 120 120 120 120 Average Speed 140 | 97 129 130 120 157 Slowest Speed 250 | 120 250 190 120 240 Overloaded Moves . | . . . . . Propulsion Burnouts . | . . . . . Robots Hopped . | . . . . . Potential Cave-ins . | . . . . . Cave-ins Triggered . | . . . . . Exploration Rate (%) 18 | 4 28 17 2 41 Regions Visited 4 Branch Regions . Pre-discovered Areas . | . . . . . Known Exits Taken 1 | . . . 1 . Unknown Exits Taken 3 | 1 1 1 . . Scrap Searched . | . . . . . Spaces Dug . | . . . . . Terrain Destroyed . | . . . . . Melee . | . . . . . Projectile . | . . . . . AOE . | . . . . . Terrain Rammed . | . . . . . Walls Destroyed . | . . . . . Machines Disabled . | . . . . . Actions | -11 -10 -9 -8 -8 --------- Run | Yrd Mat Mat Mat Gar Total 935 | 83 137 220 21 474 Wait 85 | 1 1 41 . 42 Move 701 | 66 117 146 18 354 Hop . | . . . . . Pick Up 33 | 10 10 7 1 5 Fast Attach . | . . . . . Attach 27 | 6 7 4 2 8 Detach . | . . . . . Swap 3 | . 1 1 . 1 Drop 3 | . 1 . . 2 Fire 48 | . . 20 . 28 Melee . | . . . . . Ram . | . . . . . Kick 1 | . . 1 . . Crush . | . . . . . Escape Stasis 31 | . . . . 31 Rewire 3 | . . . . 3 Trap . | . . . . . Miscellaneous . | . . . . . Route ------- -11/Scrapyard -10/Materials (discovered 3 exits: *Mat / Min x2) -9/Materials -8/Materials -8/Garrison History --------- Turn | Location | Event 21 | -11/Scrapyard | Discovered new exit (range 15) 82 | -11/Scrapyard | Entered Materials 176 | -10/Materials | Identified exit to Mines 181 | -10/Materials | Discovered new exit (range 14) 254 | -10/Materials | Entered another Materials area 254 | -9/Materials | Evolved 2 slots: Utility x2 323 | -9/Materials | Build established: Mutant 509 | -9/Materials | Discovered new exit (range 8) 560 | -9/Materials | Entered another Materials area 560 | -8/Materials | Evolved 2 slots: Propulsion x1, Weapon x1 584 | -8/Materials | Identified exit to Garrison 585 | -8/Materials | Entered Garrison 603 | -8/Garrison | Installed Relay Interface Framework 765 | -8/Garrison | Triggered checkpoint 800 | -8/Garrison | Garrison Relay disabled 864 | -8/Garrison | Build established: Tank 949 | -8/Garrison | Triggered checkpoint 1151 | -8/Garrison | Spotted B-75 Beast 1240 | -8/Garrison | Triggered checkpoint 1292 | -8/Garrison | Core integrity fell below 50% 1306 | -8/Garrison | Core integrity fell below 20% 1314 | -8/Garrison | Destroyed by B-75 Beast with Heavy Plasma Cannon Last Messages --------------- 01296_ Field strength at 44. 01297_ Field strength at 38. 01298_ Field strength at 29. 01299_ Field strength at 23. 01300_ Field strength at 17. 01300_ Stasis field depleted. 01301_ Acquired 2 matter. 01302_ Triggered Stasis Trap. 01302_ A bubble of rippling energy engulfs the area. 01302_ Field strength at 94. 01304_ Field strength at 83. 01305_ Field strength at 77. 01306_ Field strength at 49. 01307_ Field strength at 36. 01308_ Field strength at 30. 01309_ Field strength at 24. 01310_ Field strength at 11. 01311_ Field strength at 5. 01312_ Stasis field depleted. Map ----- +----------------------------------------------------+ | ?######""""## ##????????????????????????????????? | | ?# #????????????????????????????????? | | #????????????????????????????????? | | #????????????????????????????????? | | ## ## ## =#????????????????????????????????? | | ?# ## ## = ###??????????????????????????????? | | ?" [ #??????????????????????????????? | | ?" #??????????????????????????????? | | ?" #??????????????????????????????? | | ?" # ?????????????????????????????? | | ?# ## ## #### ????????????????????????????? | | ?# ## ## [!####+#######?????????????????????? | | ![[* #?????????????????????? | | ^ %= #?????????????????????? | | ?# ^^ % #?????????????????????? | | ?## ## ##"%######### = #?????????????????????? | | ??????# ????#% #???????# Y#?????????????????????? | | ????????????# #???????#BB #?????????????????????? | | ????????????# #???????;BB #?????????????????????? | | ????????????# #???????#% #?????????????????????? | | ????????????# #???????#!^ #?????????????????????? | | ????????????# #???????# ^ #?????????????????????? | | ????????????# ???????# % #?????????????????????? | | ????????????# ???????# ^ #?????????????????????? | | ????????????####???????# % #?????????????????????? | | ???????????????????????# @ #?????????????????????? | | ???????????????????????# #?????????????????????? | | ???????????????????????# #?????????????????????? | | ???????????????????????# #?????????????????????? | | ???????????????????????# #?????????????????????? | | ???????????????????????# #?????????????????????? | | ???????????????????????# #?????????????????????? | | ???????????????????????# ####################### | | ???????????????????????# # | | ???????????????????????# # | | ???????????????????????# % = | | ???????????????????????################# =#### # | | ???????????????????????????????????????#= #??# # | | ???????????????????????################# #??# # | | ???????????????????????# =[ = #??# # | | ???????????????????????# !![ * = #??# # | | ???????????????????????###!! ##### %=######??# # | | ????????????????????????#"" ""#??# %#???????# # | | ????????????????????????#######??##/##???????# # | | ??????????????????????????????????# #????????# # | | ??????????????????????????????????# ????????# # | | ??????????????????????????????????# ##???????# # | | ??????????????????????????????????# #????????##### | | ??????????????????????????????????" #????????????? | | ??????????????????????????????????T #????????????? | +----------------------------------------------------+ Best States ------------- Heat Dissipation 55 Energy Generation 10 Energy Capacity 125 Matter Stores 300 Matter Capacity 300 Sight Range 16 Terrain Scan Density 10 Utility Shielding 33 Evasion (%) 55 Recoil Reduction 2 Item Schematics ----------------- None Robot Schematics ------------------ None Fabricated ------------ Nothing Repaired ---------- Nothing Alien Tech Used ----------------- None Achievements -------------- None Challenges ------------ None Game ------ Seed ThunderBottomlessBoregun Manual? 0 Play Time 00:20:10 Cumulative 32.9 hours Start 2025.07.20 @ 11:49:26 End 2025.07.20 @ 12:11:13 Sessions 1 Manual Loads 0 Difficulty Rogue Special Mode None Game No. 17 Rogue 13 Adventurer 4 Explorer 0 Win Type - Total 0 Types 0/0/0/0/0/0/0/0/0/0 Lore% 23 Gallery% 28 Achievement% 25 Wizard Run 0 Options --------- Layout 1 ASCII 0 Keyboard 0 Movement Numpad Keybinds 1 Fullscreen 1 Font 24/Smallcaps Map View 50x35 Zoom Use 0% Tactical HUD 1 Map Filters NONE Filters NONE Steam 1 RUN: 6b86e941-2600-4061-92d3-8aa768336ba3